[Event "14th Margaryan Memorial-GM 2024"]
[Site "Yerevan"]
[Date "2024.01.08"]
[Round "1.1"]
[White "Movahed, Sina"]
[Black "Babujian, Levon"]
[Result "1-0"]
[ECO "C63"]
[WhiteElo "2450"]
[BlackElo "2346"]
[Annotator "RC"]
[PlyCount "89"]
[EventDate "2024.01.08"]
[EventType "tourn"]
[EventCountry "ARM"]
[SourceTitle "playchess.com"]
[Source "ChessBase"]
[SourceQuality "1"]
[TimeControl "40/5400+30:1800+30"]

1. e4 {[%emt 0:00:33]} e5 {[%emt 0:00:06]} 2. Nf3 {[%emt 0:00:11]} Nc6 {[%emt 0:00:07]} 3. Bb5 {[%emt 0:00:05]} f5 {[%emt 0:00:38]} 4. d3 {[%emt 0:00:14]} fxe4 {[%emt 0:00:07]} 5. dxe4 {[%emt 0:00:05]} Nf6 {[%emt 0:00:04]} 6. O-O {[%emt 0:00:07]} Bc5 {[%emt 0:00:24]} 7. Bxc6 {[%emt 0:00:14]} bxc6 {[%emt 0:00:07]} 8. Nxe5 {[%emt 0:00:10]} O-O {[%emt 0:00:10]} 9. Nc3 {[%emt 0:00:17]} d6 {[%emt 0:00:33]} 10. Na4 {[%emt 0:00:09]} Nxe4 {[%emt 0:00:21]} 11. Nxc5 {[%emt 0:01:23]} Nxc5 {[%emt 0:00:15]} 12. Nxc6 {[%emt 0:03:08]} Qe8 {[%emt 0:00:54]} 13. Nd4 {[%emt 0:00:45]} Qg6 {[%emt 0:02:36]} 14. f3 {[%emt 0:03:18]} Bb7 {[%emt 0:02:29]} 15. b3 {[%emt 0:22:47]} Nd7 {[%emt 0:02:26]} 16. Qd3 {[%emt 0:14:07]} Qf6 {[%emt 0:05:46]} 17. Be3 {[%emt 0:05:02]} Ne5 {[%emt 0:01:31]} 18. Qd2 {[%emt 0:02:27]} Qg6 {[%emt 0:04:12]} 19. f4 {[%emt 0:07:51]} Ng4 {[%emt 0:03:25]} 20. f5 {[%emt 0:00:40]} Qh5 {[%emt 0:01:15]} 21. h3 {[%emt 0:03:05]} Nxe3 {[%emt 0:05:48]} 22. Qxe3 {[%emt 0:00:09]} c5 {[%emt 0:03:30]} 23. Qe2 {[%emt 0:05:35]} Qxe2 {[%emt 0:07:16]} 24. Nxe2 {[%emt 0:00:02]} Rae8 {[%emt 0:01:19]} 25. Ng3 {[%emt 0:01:45]} Re3 {[%emt 0:03:41]} 26. Kh2 {[%emt 0:00:28]} d5 {[%emt 0:04:22]} 27. Rf4 {[%emt 0:02:51]} Rc3 {[%emt 0:03:16]} 28. Rf2 {[%emt 0:02:23]} Re8 {[%emt 0:00:35]} 29. f6 {[%emt 0:01:03]} gxf6 {[%emt 0:08:03]} 30. Nh5 {[%emt 0:00:11]} Re5 {[%emt 0:05:45]} 31. Nxf6+ {[%emt 0:00:26]} Kg7 {[%emt 0:00:08]} 32. Raf1 {[%emt 0:05:19]} Ba6 {[%emt 0:07:29]} 33. Rd1 {[%emt 0:02:05]} d4 {[%emt 0:00:55]} 34. Rdd2 {[%emt 0:03:29]} Bc8 {[%emt 0:06:18]} 35. b4 {[%emt 0:06:46]} d3 {[%emt 0:02:52]} 36. cxd3 {[%emt 0:01:01]} cxb4 {[%emt 0:01:19]} 37. d4 {[%emt 0:00:45]} Re6 {[%emt 0:11:50]} 38. Nh5+ {[%emt 0:00:43]} Kh6 {[%emt 0:00:38]} 39. d5 {[%emt 0:00:24]} Rd6 {[%emt 0:05:50]} 40. Nf6 {[%emt 0:00:00]} Rc4 {[%emt 0:00:00]} 41. Rd3 {[%emt 0:20:46]} Rd8 {[%emt 0:21:05]} 42. Rg3 {[%emt 0:02:52]} Rc3 {[%emt 0:01:15]} 43. Ng8+ {[%emt 0:00:27]} Kh5 {[%emt 0:00:14]} 44. Rg7 {[%emt 0:00:08]} Rd6 {[%emt 0:06:36]} 45. g4+ {[%emt 0:02:47]} 1-0

[Event "14th Margaryan Memorial-GM 2024"]
[Site "Yerevan"]
[Date "2024.01.08"]
[Round "1.2"]
[White "Shahinyan, David"]
[Black "Shuvalova, Polina"]
[Result "1-0"]
[ECO "C45"]
[WhiteElo "2436"]
[BlackElo "2475"]
[Annotator "TA"]
[PlyCount "127"]
[EventDate "2024.01.08"]
[EventType "tourn"]
[EventCountry "ARM"]
[SourceTitle "playchess.com"]
[Source "ChessBase"]
[SourceQuality "1"]
[TimeControl "40/5400+30:1800+30"]

{[%evp 10,127,10,-4,0,0,-4,1,0,-49,0,0,0,0,0,0,39,29,18,30,18,20,30,23,37,-49,0,0,0,0,89,92,98,101,95,81,89,102,160,41,32,24,22,12,47,66,62,64,63,63,63,63,66,13,18,0,18,7,16,0,17,17,113,113,113,88,162,162,176,243,229,254,204,163,163,152,287,290,343,331,304,208,322,259,199,149,1041,952,624,624,12834,12833,12833,1942,12836,12836,12839,12839,12840,12840,12841,12841,12841,12841,12841,12841,12850,12844,12845,12845,12846,12847,12847,12846,12846,12847,12847,12847,12848,12848]} 1. e4 {[%emt 0:00:02]} e5 {[%emt 0:00:05]} 2. Nf3 {[%emt 0:00:09]} Nc6 {[%emt 0:00:05]} 3. d4 {[%emt 0:00:12]} exd4 {[%emt 0:00:07]} 4. Nxd4 {[%emt 0:00:05]} Nf6 {[%emt 0:00:07]} 5. Nxc6 {[%emt 0:00:13]} bxc6 {[%emt 0:00:05]} 6. Nd2 {[%emt 0:00:02]} Bc5 {[%emt 0:00:13] C45: Scotch Game.} 7. e5 {[%emt 0:00:10] 7.Nb3 is becoming the main line.} Qe7 {[%emt 0:00:19][%cal Od7d5] White should prevent ...d5!} 8. Qe2 {[%emt 0:00:06] Prevents d5.} Nd5 {[%emt 0:00:23] The position is equal.} 9. Nb3 {[%emt 0:00:05]} (9. Qe4 $11) 9... O-O {[%emt 0:02:19]} (9... Bb4+ $1 $15 {was preferrable.} 10. Kd1 (10. c3 Nxc3 11. bxc3 Bxc3+ 12. Bd2 Bxa1 $11) 10... O-O) 10. Nxc5 $11 {[%emt 0:08:58]} Qxc5 {[%emt 0:00:11]} 11. c4 {[%emt 0:00:02]} Nb6 {[%emt 0:02:15]} 12. b3 {[%emt 0:09:56] [#]} d5 $146 {[%emt 0:18:19]} (12... Re8 $5 {[%cal Re8e5]}) ({Predecessor:} 12... d6 13. f4 Re8 14. Be3 Qa3 15. Bc1 Qc5 16. Be3 Qa3 17. Bc1 Qc5 {½-½ Pasini,N (2197)-Van Foreest,L (2522) Spilimbergo op 18th 2020 (4)}) 13. exd6 $1 {[%emt 0:16:25]} Bg4 {[%emt 0:16:03][%mdl 64] Deflection} 14. Qxg4 {[%emt 0:01:36]} Qe5+ {[%emt 0:00:07]} 15. Kd1 {[%emt 0:02:18]} Qxa1 {[%emt 0:00:13]} 16. Kc2 $1 $40 {[%emt 0:04:41][%mdl 128] White mounts an attack.} (16. dxc7 Qxa2 17. Qe2 Qxb3+ 18. Qc2 Qb4 $19) 16... Qf6 {[%emt 0:02:17]} (16... cxd6 $2 17. Bb2 $18) 17. Bd3 {[%emt 0:01:25] Active counter play!} (17. dxc7 $14 Qxf2+ 18. Kb1) 17... Qxf2+ {[%emt 0:07:28]} (17... cxd6 $15 18. f3 Qe7) 18. Bd2 $1 {[%emt 0:03:43] Some like it hot. A strong pair of Bishops.} f5 {[%emt 0:08:09]} (18... cxd6 19. Rf1 f5 20. Qh3 $14) 19. Qh3 {[%emt 0:03:36] Threatens to win with Rf1.} cxd6 {[%emt 0:13:30]} (19... g6 $11 {keeps the balance.}) 20. Rf1 $16 {[%emt 0:04:24]} Qc5 {[%emt 0:01:15] aiming for ...g6.} (20... Qd4 $2 21. Bxf5 Rxf5 22. Qxf5 $18) 21. Bxf5 {[%emt 0:11:19]} Rxf5 {[%emt 0:00:54]} 22. Rxf5 {[%emt 0:00:04]} (22. Qxf5 Qxf5+ 23. Rxf5 d5 $14) 22... d5 {[%emt 0:00:37]} 23. Bc3 $1 {[%emt 0:06:12][%cal Oc3g7] Black must now prevent Bxg7!} Re8 {[%emt 0:05:57]} (23... Qd6 $142) 24. Qg3 {[%emt 0:07:28]} (24. Bxg7 $1 $16 {Qh5 would kill now.} Nxc4 25. bxc4 Qxc4+ 26. Bc3 Qxa2+ 27. Bb2 (27. Kc1 Qa3+ 28. Bb2 Qxh3 $16) 27... Qc4+ 28. Qc3 (28. Kd1 $2 Qe2+ 29. Kc1 Qe1+ 30. Kc2 Re2+ 31. Kb3 Re3+ $19)) 24... g6 $14 {[%emt 0:02:15]} 25. Re5 {[%emt 0:03:42][%cal Bf5e5,Be5e2,Be2e6][%mdl 32]} Rf8 {[%emt 0:00:43]} 26. Qg4 {[%emt 0:00:45]} Qf2+ {[%emt 0:04:14]} (26... Rf2+ {feels hotter.} 27. Kc1 Rf1+ 28. Kd2 Rf2+) 27. Re2 {[%emt 0:01:55]} Qf5+ {[%emt 0:00:07]} 28. Qxf5 {[%emt 0:00:02]} Rxf5 {[%emt 0:00:11]} 29. cxd5 $1 {[%emt 0:04:47]} Nxd5 {[%emt 0:01:14][%mdl 4096] Endgame KRB-KRN} 30. Bd4 {[%emt 0:00:11]} a6 {[%emt 0:02:02]} 31. Re6 {[%emt 0:01:25]} (31. g3 $14) 31... Kf7 $11 {[%emt 0:00:28]} 32. Re2 {[%emt 0:02:49]} (32. Rxc6 $2 {perishes.} Nb4+ 33. Kc3 Nxc6 $19) 32... h5 {[%emt 0:00:30]} 33. a3 {[%emt 0:00:30]} Rf1 {[%emt 0:02:58]} 34. Rf2+ {[%emt 0:01:24]} Rxf2+ {[%emt 0:00:29]} 35. Bxf2 {[%emt 0:00:01] next Kd3 is good for White. KB-KN} Ke6 {[%emt 0:02:59]} (35... g5 $1 $11) 36. Kd3 $1 $16 {[%emt 0:00:06]} Nf4+ {[%emt 0:03:24]} 37. Ke4 $1 {[%emt 0:00:33]} Nd5 {[%emt 0:01:59] [#]} (37... g5 $16 {is a better defense.}) 38. Kd4 $1 $18 {[%emt 0:00:58]} g5 {[%emt 0:00:27]} 39. Kc5 {[%emt 0:02:24]} Kd7 {[%emt 0:00:14] [#]} 40. Be1 $1 {[%emt 0:00:00]} g4 {[%emt 0:00:00]} 41. Bd2 {[%emt 0:17:19] Repels Nf4} Kc7 {[%emt 0:18:15]} 42. h3 {[%emt 0:06:37]} gxh3 {[%emt 0:05:07]} (42... Ne7 $16 {was called for.} 43. hxg4 hxg4) 43. gxh3 {[%emt 0:00:03]} Kd7 {[%emt 0:03:49]} 44. Bg5 {[%emt 0:02:52]} Kc7 {[%emt 0:00:19]} 45. Bh6 {[%emt 0:00:33]} Kd7 {[%emt 0:00:12]} (45... Nc3 $142 46. Bf4+ Kb7) 46. Bd2 {[%emt 0:00:04]} Kc7 {[%emt 0:00:33]} 47. Be1 {[%emt 0:01:31]} ({Better is} 47. a4 $18) 47... Kd7 $2 {[%emt 0:02:56][%mdl 8192] Black cannot hold the game after this.} (47... Ne3 $16 48. Ba5+ Kb7) 48. Bg3 {[%emt 0:01:53] White is clearly winning.} Nc3 {[%emt 0:00:41]} 49. Kb6 {[%emt 0:02:07]} Nb5 {[%emt 0:01:06]} 50. a4 {[%emt 0:01:05]} ({Inferior is} 50. Kxa6 Nxa3 51. Bf2 Ke6 $11) 50... Nd4 {[%emt 0:00:05]} 51. b4 {[%emt 0:01:15]} (51. Kxa6 $142 Ne2 52. Be1) 51... Nc2 {[%emt 0:00:09]} 52. Kxa6 {[%emt 0:02:32]} Nxb4+ {[%emt 0:00:04]} 53. Kb6 {[%emt 0:00:14]} Nd5+ {[%emt 0:01:21]} 54. Kc5 {[%emt 0:01:25]} Kc8 {[%emt 0:05:14]} 55. Kxc6 {[%emt 0:00:09]} Ne7+ {[%emt 0:00:09]} 56. Kb6 {[%emt 0:00:30]} Nd5+ {[%emt 0:00:04]} 57. Ka7 {[%emt 0:01:30]} h4 {[%emt 0:01:20]} 58. Bh2 {[%emt 0:01:39]} Ne7 {[%emt 0:02:06]} 59. a5 {[%emt 0:00:09][%cal Ba4a5,Ba5a6,Ba6a7][%mdl 32]} Nd5 {[%emt 0:00:30]} 60. a6 {[%emt 0:00:10]} Nb4 {[%emt 0:00:22]} 61. Kb6 {[%emt 0:00:29]} Nd5+ {[%emt 0:00:05]} 62. Kc5 {[%emt 0:00:30]} Ne3 {[%emt 0:01:04]} 63. Kc6 {[%emt 0:00:18] Threatening mate with a7.} Nf5 {[%emt 0:00:22]} 64. a7 {[%emt 0:02:53] Weighted Error Value: White=0.12 (very precise) /Black=0.23 (precise)} 1-0

[Event "14th Margaryan Memorial-GM 2024"]
[Site "Yerevan"]
[Date "2024.01.08"]
[Round "1.3"]
[White "Agasarov, Benik"]
[Black "Davtyan, Arsen"]
[Result "1-0"]
[ECO "E04"]
[WhiteElo "2340"]
[BlackElo "2392"]
[Annotator "RC"]
[PlyCount "137"]
[EventDate "2024.01.08"]
[EventType "tourn"]
[EventCountry "ARM"]
[SourceTitle "playchess.com"]
[Source "ChessBase"]
[SourceQuality "1"]
[TimeControl "40/5400+30:1800+30"]

1. d4 {[%emt 0:04:04]} Nf6 {[%emt 0:00:06]} 2. c4 {[%emt 0:00:12]} e6 {[%emt 0:00:06]} 3. g3 {[%emt 0:00:08]} d5 {[%emt 0:01:22]} 4. Bg2 {[%emt 0:00:06]} dxc4 {[%emt 0:02:01]} 5. Nf3 {[%emt 0:00:15]} Nc6 {[%emt 0:00:38]} 6. Qa4 {[%emt 0:00:24]} Bb4+ {[%emt 0:00:38]} 7. Bd2 {[%emt 0:00:11]} Nd5 {[%emt 0:00:08]} 8. Bxb4 {[%emt 0:00:19]} Ndxb4 {[%emt 0:00:05]} 9. O-O {[%emt 0:00:20]} Rb8 {[%emt 0:02:59]} 10. Nc3 {[%emt 0:01:29]} a6 {[%emt 0:06:50]} 11. Ne5 {[%emt 0:00:07]} O-O {[%emt 0:00:35]} 12. Nxc6 {[%emt 0:00:07]} Nxc6 {[%emt 0:00:36]} 13. Bxc6 {[%emt 0:00:06]} bxc6 {[%emt 0:00:03]} 14. Qxc4 {[%emt 0:00:05]} Qd6 {[%emt 0:00:45]} 15. b3 {[%emt 0:00:21]} Rb4 {[%emt 0:00:29]} 16. Ne4 {[%emt 0:00:27]} Qxd4 {[%emt 0:00:47]} 17. Qxd4 {[%emt 0:00:06]} Rxd4 {[%emt 0:00:04]} 18. Nc5 {[%emt 0:00:04]} e5 {[%emt 0:01:49]} 19. f3 {[%emt 0:01:17]} f5 {[%emt 0:03:24]} 20. Kf2 {[%emt 0:01:07]} Kf7 {[%emt 0:15:47]} 21. Rac1 {[%emt 0:08:13]} Kf6 {[%emt 0:04:58]} 22. Rc2 {[%emt 0:09:03]} g5 {[%emt 0:11:52]} 23. e3 {[%emt 0:05:50]} Rd6 {[%emt 0:02:13]} 24. b4 {[%emt 0:00:24]} h5 {[%emt 0:10:04]} 25. Ke2 {[%emt 0:04:26]} Rfd8 {[%emt 0:01:56]} 26. a4 {[%emt 0:01:17]} Ke7 {[%emt 0:03:12]} 27. a5 {[%emt 0:01:54]} h4 {[%emt 0:09:52]} 28. gxh4 {[%emt 0:00:43]} gxh4 {[%emt 0:00:08]} 29. Rg1 {[%emt 0:00:14]} Kf6 {[%emt 0:01:09]} 30. Rgc1 {[%emt 0:06:01]} Rg8 {[%emt 0:12:19]} 31. Kf2 {[%emt 0:00:23]} h3 {[%emt 0:00:21]} 32. Rg1 {[%emt 0:00:10]} Rxg1 {[%emt 0:00:53]} 33. Kxg1 {[%emt 0:00:04]} Rd1+ {[%emt 0:01:39]} 34. Kf2 {[%emt 0:00:06]} Rh1 {[%emt 0:04:54]} 35. Kg3 {[%emt 0:00:44]} f4+ {[%emt 0:00:14]} 36. exf4 {[%emt 0:00:57]} Rg1+ {[%emt 0:00:04]} 37. Kh4 {[%emt 0:00:06]} exf4 {[%emt 0:02:01]} 38. Nd3 {[%emt 0:01:15]} Rg2 {[%emt 0:01:14]} 39. Rxc6+ {[%emt 0:00:05]} Ke7 {[%emt 0:00:08]} 40. Nxf4 {[%emt 0:00:00]} Rxh2 {[%emt 0:00:00]} 41. Rxc7+ {[%emt 0:20:05]} Kd8 {[%emt 0:16:25]} 42. Rh7 {[%emt 0:02:17]} Rb2 {[%emt 0:03:15]} 43. Kg3 {[%emt 0:00:59]} Rb3 {[%emt 0:05:27]} 44. Rh8+ {[%emt 0:03:59]} Kc7 {[%emt 0:00:48]} 45. Nd5+ {[%emt 0:00:33]} Kb7 {[%emt 0:02:35]} 46. Rh6 {[%emt 0:02:29]} Rb2 {[%emt 0:03:12]} 47. Rh7+ {[%emt 0:01:14]} Kb8 {[%emt 0:00:05]} 48. Rh8 {[%emt 0:03:54]} Kb7 {[%emt 0:00:18]} 49. Rh6 {[%emt 0:00:18]} Bd7 {[%emt 0:02:13]} 50. Rh7 {[%emt 0:05:52]} Kc6 {[%emt 0:00:46]} 51. Nb6 {[%emt 0:00:03]} Bf5 {[%emt 0:01:54]} 52. Rh6+ {[%emt 0:00:05]} Kc7 {[%emt 0:00:34]} 53. Kf4 {[%emt 0:00:25]} Bb1 {[%emt 0:00:30]} 54. Nd5+ {[%emt 0:00:18]} Kd7 {[%emt 0:00:08]} 55. Rxh3 {[%emt 0:05:18]} Kc6 {[%emt 0:00:41]} 56. Rh5 {[%emt 0:06:47]} Ba2 {[%emt 0:00:04]} 57. b5+ {[%emt 0:01:54]} axb5 {[%emt 0:01:08]} 58. Ne7+ {[%emt 0:00:04]} Kb7 {[%emt 0:00:18]} 59. Rh6 {[%emt 0:00:10]} Bc4 {[%emt 0:00:39]} 60. a6+ {[%emt 0:00:16]} Kc7 {[%emt 0:00:32]} 61. a7 {[%emt 0:02:00]} Ra2 {[%emt 0:00:00]} 62. Rh7 {[%emt 0:00:09]} Kb6 {[%emt 0:01:00]} 63. Nc8+ {[%emt 0:00:48]} Kc5 {[%emt 0:00:02]} 64. Rc7+ {[%emt 0:00:07]} Kd4 {[%emt 0:00:35]} 65. Nb6 {[%emt 0:00:04]} Bd3 {[%emt 0:00:48]} 66. a8=Q {[%emt 0:01:00]} Rxa8 {[%emt 0:00:04]} 67. Nxa8 {[%emt 0:00:04]} b4 {[%emt 0:00:02]} 68. Rb7 {[%emt 0:00:23]} Kc3 {[%emt 0:00:11]} 69. Nb6 {[%emt 0:00:04]} 1-0

[Event "14th Margaryan Memorial-GM 2024"]
[Site "Yerevan"]
[Date "2024.01.08"]
[Round "1.4"]
[White "Ohanyan, Emin"]
[Black "Ivanov, Sergey"]
[Result "1-0"]
[ECO "B83"]
[WhiteElo "2456"]
[BlackElo "2462"]
[Annotator "TA"]
[PlyCount "85"]
[EventDate "2024.01.08"]
[EventType "tourn"]
[EventCountry "ARM"]
[SourceTitle "playchess.com"]
[Source "ChessBase"]
[SourceQuality "1"]
[TimeControl "40/5400+30:1800+30"]

{[%evp 20,85,5,20,18,18,27,-28,-29,-39,-21,-160,-177,-249,-219,-227,-225,-288,-299,-268,-280,-659,-628,-1655,-1522,-1778,-1798,-1434,-1434,-992,-283,-283,-283,-283,-283,-277,-234,-616,0,0,0,0,0,-218,52,58,59,59,59,59,59,59,59,59,59,59,59,59,29979,29980,29980,29981,29982,29982,29983,29984,29984,29983]} 1. e4 {[%emt 0:04:09]} c5 {[%emt 0:00:16]} 2. Nf3 {[%emt 0:00:18]} e6 {[%emt 0:00:17]} 3. Be2 {[%emt 0:00:51]} Nc6 {[%emt 0:00:56]} 4. O-O {[%emt 0:00:52]} Nf6 {[%emt 0:01:19]} 5. Nc3 {[%emt 0:00:39]} Be7 {[%emt 0:02:56]} 6. d4 {[%emt 0:00:32]} cxd4 {[%emt 0:00:14]} 7. Nxd4 {[%emt 0:00:03]} Qc7 {[%emt 0:03:23]} 8. Kh1 {[%emt 0:02:10]} O-O {[%emt 0:01:23]} 9. f4 {[%emt 0:01:22]} d6 {[%emt 0:00:49][%cal Bd7d6,Bd6d5,Bd5e4,Be4f3,Bf3f2][%mdl 32]} 10. Be3 {[%emt 0:01:20]} Nxd4 {[%emt 0:01:08]} 11. Bxd4 {[%emt 0:04:57]} e5 {[%emt 0:00:54] B83: Sicilian Scheveningen: 6 Be2, lines without ...a6.} 12. Be3 {[%emt 0:01:22]} b6 {[%emt 0:00:57] [#]} 13. g4 $146 {[%emt 0:10:43]} (13. Bd3 $142) ({Predecessor:} 13. Bd3 Bb7 14. Qf3 Rad8 15. Rae1 Qc8 16. Nd5 Nxd5 17. exd5 Bf6 18. c3 exf4 19. Bxf4 {½-½ Antal,G (2571)-Mihok,O (2549) HUN-ch Rapid 2022 (10)}) 13... Bb7 $11 {[%emt 0:02:29] Black has an edge.} 14. Bf3 {[%emt 0:00:40]} d5 {[%emt 0:12:29]} 15. g5 {[%emt 0:06:06]} (15. Nxd5 $11 {remains equal.} Nxd5 {[%mdl 64] Remove Defender} 16. exd5) 15... dxe4 $17 {[%emt 0:17:42]} 16. gxf6 {[%emt 0:02:04]} (16. Bg2 $142 Rfd8 17. Qe2) 16... exf3 $19 {[%emt 0:00:30]} 17. Nd5 {[%emt 0:03:04]} (17. fxe7 f2+ 18. Nd5 Rad8 19. exd8=N (19. exf8=Q+ $2 Kxf8 20. Rxf2 Rxd5 $19) 19... Rxd8 20. Rxf2 Rxd5 $19) 17... f2 $1 {[%emt 0:03:22]} (17... Bxd5 18. fxe7 Qxe7 19. Qxd5 $16) 18. fxe7 {[%emt 0:01:05] [#]} Rad8 {[%emt 0:05:04][%mdl 512]} 19. exd8=Q {[%emt 0:31:07]} Rxd8 {[%emt 0:00:28]} 20. h3 $2 {[%emt 0:20:18]} (20. Rxf2 Rxd5 21. Kg1 (21. Qf3 $2 Rb5 $19) 21... Rxd1+ 22. Rxd1) 20... Rxd5 {[%emt 0:03:09]} 21. Qg4 {[%emt 0:00:41]} exf4 {[%emt 0:07:54]} (21... Qxc2 $2 22. Kh2 $18 (22. Bxf2 $2 Rd2+ 23. Kg1 Qe4 $19) (22. Rxf2 Qe4+ 23. Rg2 g6 $11)) 22. Bxb6 {[%emt 0:06:07]} axb6 {[%emt 0:03:17]} 23. Kh2 {[%emt 0:00:01] White is weak on the dark squares} h5 {[%emt 0:05:24]} (23... Qxc2 24. Qxf4 Rd2 25. Rac1 $11) 24. Qh4 {[%emt 0:00:56]} Rd2 $2 {[%emt 0:19:20]} (24... Qxc2 25. Rxf2 Rd2 26. Qd8+ Rxd8 27. Rxc2 $15) (24... f6 25. Rxf2 Rg5) 25. Rxf2 {[%emt 0:00:26]} Rxc2 {[%emt 0:01:04]} 26. Raf1 {[%emt 0:00:31]} Rxf2+ {[%emt 0:02:20][%mdl 64] Remove Defender} 27. Rxf2 {[%emt 0:01:00][%mdl 4096] Endgame KQR-KQB} Qc6 $1 {[%emt 0:02:03][%csl Gb7][%cal Rc6h1]} (27... f3+ 28. Qg3 Qe7 29. Rd2 $17) 28. Qxf4 $2 {[%emt 0:00:09]} (28. Qd8+ Kh7 29. Qd1) 28... Qh1+ $2 {[%emt 0:01:01]} (28... f6 $1 $19 29. Qd2 g5) 29. Kg3 $11 {[%emt 0:00:01] Really sharp!} Qg1+ {[%emt 0:00:02]} 30. Kh4 {[%emt 0:00:03]} f6 {[%emt 0:00:17]} 31. Qf5 {[%emt 0:01:24] [#]} (31. Kxh5 Kh7) (31. Qe3 $11 {and White stays safe.} Kh7 32. Re2 (32. Qxb6 $2 Qg5#)) 31... Be4 $2 {[%emt 0:01:31]} 32. Qe6+ $14 {[%emt 0:00:31]} (32. Qxe4 $2 Qg5#) ({Wrong is} 32. Rf1 $2 Qe3 33. Qe6+ Kh7 $19) 32... Kf8 {[%emt 0:01:13][%csl Gf6][%cal Rg1g5]} 33. Rxf6+ $1 {[%emt 0:00:17][%mdl 64] Demolition} (33. Qxb6 $2 Qg5#) ({But not} 33. Qc8+ Ke7 34. Qc7+ Ke8 35. Qc8+ (35. Qxb6 $2 Qg5#) 35... Ke7 36. Qc7+ Ke8 37. Qc8+ (37. Qxb6 $2 Qg5#) 37... Ke7 $11) 33... gxf6 {[%emt 0:00:01]} 34. Qxf6+ {[%emt 0:00:05]} (34. Qxe4 $2 Qg5#) 34... Kg8 {[%emt 0:01:15] Threatens to win with ...Bg6.} 35. Qe6+ {[%emt 0:00:02]} (35. Kxh5 $2 {perishes.} Qg7 36. Qxg7+ Kxg7 $17) 35... Kg7 {[%emt 0:00:07]} 36. Qxe4 {[%emt 0:00:53] Black must now prevent Qe7+. KQ-KQ} Qf2+ $1 {[%emt 0:00:06]} 37. Kxh5 {[%emt 0:00:11] Strongly threatening Qe7+.} Qxb2 {[%emt 0:00:06]} 38. Qe7+ {[%emt 0:00:29]} Kg8 $2 {[%emt 0:00:19][%mdl 8192] [#]} (38... Kh8 $14) 39. Kh6 $1 {[%emt 0:00:35][%cal Re7e8] White mates.} Qd2+ {[%emt 0:02:10]} 40. Qg5+ {[%emt 0:00:00]} Qxg5+ {[%emt 0:00:00]} 41. Kxg5 {[%emt 0:15:14]} Kf7 {[%emt 0:16:00]} 42. a4 {[%emt 0:00:06]} Kg7 {[%emt 0:00:23]} 43. Kf5 {[%emt 0:00:15] What a bad dream for Black. A fantastic game!   Weighted Error Value: White=0.74/Black=0.59} 1-0

[Event "14th Margaryan Memorial-GM 2024"]
[Site "Yerevan"]
[Date "2024.01.08"]
[Round "1.5"]
[White "Sorensen, Hampus"]
[Black "Grebnev, Aleksey"]
[Result "0-1"]
[ECO "A50"]
[WhiteElo "2458"]
[BlackElo "2535"]
[Annotator "TA"]
[PlyCount "86"]
[EventDate "2024.01.08"]
[EventType "tourn"]
[EventCountry "ARM"]
[SourceTitle "playchess.com"]
[Source "ChessBase"]
[SourceQuality "1"]
[TimeControl "40/5400+30:1800+30"]

{[%evp 9,86,0,0,0,-2,0,0,0,0,0,22,16,17,4,24,13,32,28,51,45,42,-18,0,-15,-8,-8,-11,-5,-9,-7,-4,-10,0,0,0,0,8,8,11,-16,0,0,0,-153,-148,-154,-143,-171,-174,-153,-150,-178,-173,-166,-168,-159,-159,-160,-161,-243,-223,-232,-195,-239,-235,-378,-339,-378,-370,-358,-334,-813,-858,-1152,-1139,-5485,-102,-5461,-4064]} 1. d4 {[%emt 0:00:24]} Nf6 {[%emt 0:00:29]} 2. c4 {[%emt 0:00:16]} e6 {[%emt 0:00:10]} 3. Bf4 {[%emt 0:00:15]} Bb4+ {[%emt 0:04:06]} 4. Nd2 {[%emt 0:00:09]} c5 {[%emt 0:00:10]} 5. dxc5 {[%emt 0:00:39]} Nc6 {[%emt 0:00:08]} 6. a3 {[%emt 0:05:47] A50: Queen's Fianchetto Defence (1 d4 Nf6 2 c4 b6).} Bxc5 {[%emt 0:00:07]} 7. e3 {[%emt 0:00:11]} O-O {[%emt 0:00:20]} 8. Ngf3 {[%emt 0:01:20] [#] The position is equal.} b6 $146 {[%emt 0:00:35]} ({Predecessor:} 8... a5 9. Be2 Qb6 10. Qb3 Qa7 11. O-O a4 12. Qc2 h6 13. h3 d6 14. Bh2 e5 {0-1 Yordanov,L (2323)-Krishnan,R (2176) Benidorm op-A 2023 (2)}) 9. Be2 {[%emt 0:01:47]} Be7 {[%emt 0:00:26]} 10. h3 {[%emt 0:02:14]} d6 {[%emt 0:00:18]} 11. Bh2 {[%emt 0:04:43]} e5 {[%emt 0:01:02]} 12. Rc1 {[%emt 0:09:04]} h6 {[%emt 0:04:00]} 13. Nb1 {[%emt 0:04:55]} Bf5 {[%emt 0:01:10]} 14. Nc3 {[%emt 0:01:58]} Rc8 {[%emt 0:00:08]} 15. Nd5 {[%emt 0:08:13]} (15. O-O $14) 15... Qd7 {[%emt 0:04:29]} 16. Nd2 {[%emt 0:08:48]} Nxd5 {[%emt 0:04:42]} 17. cxd5 {[%emt 0:00:32] Strongly threatening Bb5.} Nb8 {[%emt 0:00:05]} 18. Rxc8 {[%emt 0:09:20]} Rxc8 {[%emt 0:01:37]} 19. e4 {[%emt 0:00:09]} Bg6 {[%emt 0:00:18]} 20. O-O {[%emt 0:00:21]} Rc7 {[%emt 0:07:10]} 21. Bd3 {[%emt 0:10:38]} Bg5 {[%emt 0:01:54]} 22. Nb1 {[%emt 0:05:26][%cal Bd2b1,Bb1c3,Bc3e2][%mdl 32]} b5 {[%emt 0:07:22]} 23. Nc3 {[%emt 0:02:18]} a6 {[%emt 0:00:09]} 24. Ne2 {[%emt 0:06:24]} Qe7 {[%emt 0:02:21]} 25. g3 {[%emt 0:03:10]} Nd7 {[%emt 0:01:26]} 26. f4 $2 {[%emt 0:00:25] White is on the road to losing.} (26. h4 $11 Bf6 27. f3) 26... exf4 $17 {[%emt 0:00:57]} 27. gxf4 {[%emt 0:00:08] [#]} Bf6 {[%emt 0:00:06]} 28. e5 {[%emt 0:03:43]} dxe5 {[%emt 0:01:40]} 29. Bxg6 {[%emt 0:00:59] Black must now prevent d6.} Qc5+ {[%emt 0:00:07]} (29... fxg6 $2 30. d6 Qd8 31. Qd5+ Kh7 32. dxc7 $18) 30. Kh1 {[%emt 0:00:09]} fxg6 {[%emt 0:00:05]} 31. Nc3 {[%emt 0:01:22]} Qc4 {[%emt 0:02:20]} 32. Re1 {[%emt 0:01:38][%cal Rf4e5]} exf4 {[%emt 0:01:12]} 33. Re4 {[%emt 0:01:27]} Qc5 {[%emt 0:00:05]} 34. Bxf4 {[%emt 0:00:07]} (34. Re8+ $142 Nf8 35. Bxf4) 34... Rc8 $19 {[%emt 0:00:07]} 35. Be3 {[%emt 0:03:58]} Qc7 {[%emt 0:03:07]} 36. Bd4 {[%emt 0:01:30]} Kh7 {[%emt 0:00:50]} 37. Qg4 {[%emt 0:01:07]} (37. Qd3 $142) 37... Rf8 {[%emt 0:01:58] ...Bxd4 would be deadly.} 38. Kg2 {[%emt 0:00:44]} Bxd4 {[%emt 0:00:33][%mdl 64] Deflection} 39. Rxd4 {[%emt 0:00:05]} Ne5 {[%emt 0:02:11]} 40. d6 $2 {[%emt 0:00:00]} (40. Qe2) 40... Qc5 {[%emt 0:00:00]} ({Don't blunder} 40... Qf7 $2 41. Qe2 $19) 41. Qe4 {[%emt 0:21:11]} Nc6 {[%emt 0:17:50]} 42. Rd1 {[%emt 0:00:26]} Qf2+ {[%emt 0:00:10]} 43. Kh1 {[%emt 0:00:05] [#]} Rf3 $1 {[%emt 0:00:09] Weighted Error Value: White=0.75/Black=0.04 (flawless)} 0-1